fUSD/lending_fUSD_20260525
["ID","MTS","AMOUNT","RATE_DAILY","PERIOD"]
[422947208,1779667842000,-25000.0,0.00012794,3]
[422947196,1779667842000,-25000.0,0.00012777,3]
[422947210,1779667842000,-150.0,0.00012796,2]
[422947200,1779667842000,-500.0,0.00012784,2]
[422947202,1779667842000,-150.0,0.00012785,2]
[422947198,1779667842000,-150.0,0.00012783,2]
[422947212,1779667842000,-150.0,0.00012797,2]
[422947213,1779667842000,-996.02525166,0.00012798,2]
[422947215,1779667842000,-150.0,0.00012801,2]
[422947217,1779667842000,-150.0,0.00012801,2]
[422947219,1779667842000,-150.0,0.00012801,2]
[422947229,1779667842000,-150.0,0.00012813,2]
[422947227,1779667842000,-25000.0,0.00012812,3]
[422947221,1779667842000,-317.04591387,0.00012803,2]
[422947125,1779667842000,-25000.0,0.0001268,3]
[422947194,1779667842000,-317.04591387,0.00012776,2]
[422947169,1779667842000,-649.48323975,0.00012756,2]
[422947223,1779667842000,-25000.0,0.00012803,3]
[422947156,1779667842000,-317.04591387,0.00012737,2]
[422947157,1779667842000,-150.0,0.00012739,2]
[422947127,1779667842000,-150.0,0.00012683,2]
[422947132,1779667842000,-996.02525166,0.00012695,2]
[422947136,1779667842000,-150.0,0.00012701,2]
[422947146,1779667842000,-317.04591387,0.00012724,2]
[422947147,1779667842000,-25000.0,0.00012724,3]
[422947225,1779667842000,-41865.40937074,0.00012807,2]
[422947137,1779667842000,-150.0,0.00012702,2]
[422947138,1779667842000,-150.0,0.00012703,2]
[422947149,1779667842000,-150.0,0.00012727,2]
[422947135,1779667842000,-2000.0,0.000127,2]
[422947139,1779667842000,-25000.0,0.00012706,3]
[422947140,1779667842000,-150.0,0.00012708,2]
[422947141,1779667842000,-317.04591387,0.00012711,2]
[422947145,1779667842000,-150.0,0.00012723,2]
[422947129,1779667842000,-25000.0,0.00012689,3]
[422947142,1779667842000,-41865.40937074,0.00012714,2]
[422947143,1779667842000,-25000.0,0.00012715,3]
[422947160,1779667842000,-150.0,0.00012743,2]
[422947159,1779667842000,-25000.0,0.00012742,3]
[422947154,1779667842000,-25000.0,0.00012733,3]
[422947153,1779667842000,-150.0,0.00012727,2]
[422947231,1779667842000,-150.0,0.00012813,2]
[422947155,1779667842000,-150.0,0.00012733,2]
[422947166,1779667842000,-25000.0,0.0001275,3]
[422947144,1779667842000,-150.0,0.00012721,2]
[422947162,1779667842000,-150.0,0.00012748,2]
[422947151,1779667842000,-150.0,0.00012727,2]
[422947158,1779667842000,-168.24,0.0001274,2]
[422947161,1779667842000,-996.02525166,0.00012747,2]
[422947163,1779667842000,-150.0,0.0001275,2]
[422947164,1779667842000,-317.04591387,0.0001275,2]
[422947299,1779667843000,-275.43,0.00012877,2]
[422947335,1779667843000,-5992.9205,0.000129,2]
[422947301,1779667843000,-150.0,0.00012878,2]
[422947311,1779667843000,-150.0,0.00012891,2]
[422947313,1779667843000,-150.0,0.00012892,2]
[422947303,1779667843000,-150.0,0.0001288,2]
[422947305,1779667843000,-317.04591387,0.00012881,2]
[422947307,1779667843000,-25000.0,0.00012882,3]
[422947322,1779667843000,-150.0,0.00012894,2]
[422947324,1779667843000,-317.04591387,0.00012894,2]
[422947333,1779667843000,-3451.8552,0.000129,2]
[422947297,1779667843000,-25000.0,0.00012874,3]
[422947309,1779667843000,-25000.0,0.00012891,3]
[422947344,1779667843000,-12603.17647105,0.000129,2]
[422947341,1779667843000,-876.10852195,0.000129,2]
[422947339,1779667843000,-26990.24098829,0.000129,2]
[422947331,1779667843000,-150.0,0.000129,2]
[422947326,1779667843000,-150.0,0.000129,2]
[422947342,1779667843000,-1725.46117006,0.000129,2]
[422947346,1779667843000,-7713.0409235,0.000129,2]
[422947348,1779667843000,-996.02525166,0.000129,2]
[422947350,1779667843000,-150.0,0.00012905,2]
[422947347,1779667843000,-41865.40937074,0.000129,2]
[422947352,1779667843000,-150.0,0.00012907,2]
[422947356,1779667843000,-150.0,0.00012909,2]
[422947281,1779667843000,-150.0,0.0001286,2]
[422947359,1779667843000,-150.0,0.00012915,2]
[422947337,1779667843000,-25000.0,0.000129,3]
[422947295,1779667843000,-307.76784937,0.0001287,21]
[422947253,1779667843000,-25000.0,0.0001283,3]
[422947277,1779667843000,-25000.0,0.00012856,3]
[422947354,1779667843000,-317.04591387,0.00012908,2]
[422947233,1779667843000,-317.04591387,0.00012816,2]
[422947235,1779667843000,-150.0,0.00012816,2]
[422947238,1779667843000,-25000.0,0.00012821,3]
[422947242,1779667843000,-150.0,0.00012824,2]
[422947240,1779667843000,-150.0,0.00012821,2]
[422947244,1779667843000,-228.9,0.00012826,2]
[422947246,1779667843000,-150.0,0.00012827,2]
[422947248,1779667843000,-150.0,0.00012828,2]
[422947257,1779667843000,-876.10852195,0.00012833,2]
[422947259,1779667843000,-25000.0,0.00012838,3]
[422947263,1779667843000,-150.0,0.00012845,2]
[422947261,1779667843000,-317.04591387,0.00012842,2]
[422947265,1779667843000,-150.0,0.00012847,2]
[422947267,1779667843000,-25000.0,0.00012847,3]
[422947251,1779667843000,-317.04591387,0.00012829,2]
[422947255,1779667843000,-150.0,0.00012832,2]
[422947271,1779667843000,-41865.40937074,0.00012853,2]
[422947273,1779667843000,-150.0,0.00012854,2]
[422947269,1779667843000,-996.02525166,0.00012849,2]
[422947275,1779667843000,-317.04591387,0.00012855,2]
[422947287,1779667843000,-150.0,0.00012865,2]
[422947285,1779667843000,-26990.24098829,0.00012864,2]
[422947289,1779667843000,-25000.0,0.00012865,3]
[422947293,1779667843000,-317.04591387,0.00012868,2]
[422947291,1779667843000,-150.0,0.00012868,2]
[422947283,1779667843000,-150.0,0.00012863,2]
[422947279,1779667843000,-150.0,0.00012856,2]
[422947361,1779667843000,-317.04591387,0.00012921,2]
[422947362,1779667843000,-150.0,0.00012923,2]
[422947369,1779667843000,-150.0,0.00012933,2]
[422947442,1779667843000,-150.0,0.00012987,2]
[422947444,1779667843000,-3384.96838281,0.0001299,2]
[422947447,1779667843000,-3384.96838281,0.0001299,2]
[422947449,1779667843000,-151.0,0.00012997,2]
[422947451,1779667843000,-151.0,0.00012997,2]
[422947459,1779667843000,-150.0,0.00012999,2]
[422947453,1779667843000,-1724.78033875,0.00012999,3]
[422947457,1779667843000,-666.0,0.00012999,2]
[422947455,1779667843000,-300.0,0.00012999,2]
[422947461,1779667843000,-300.0,0.00012999,2]
[422947464,1779667843000,-300.0,0.00012999,2]
[422947466,1779667843000,-300.0,0.00012999,2]
[422947468,1779667843000,-300.0,0.00012999,2]
[422947478,1779667843000,-307.76784937,0.00013,21]
[422947476,1779667843000,-10000000.0,0.00013,2]
[422947488,1779667843000,-462.719021,0.00013,2]
[422947479,1779667843000,-10000000.0,0.00013,7]
[422947486,1779667843000,-462.719021,0.00013,2]
[422947482,1779667843000,-996562.08122556,0.00013,30]
[422947474,1779667843000,-351.41551866,0.00012999,2]
[422947472,1779667843000,-300.0,0.00012999,2]
[422947484,1779667843000,-462.719021,0.00013,2]
[422947490,1779667843000,-462.719021,0.00013,2]
[422947492,1779667843000,-151.0,0.00013,2]
[422947494,1779667843000,-518.523324,0.00013,2]
[422947496,1779667843000,-518.523324,0.00013,2]
[422947498,1779667843000,-518.523324,0.00013,2]
[422947438,1779667843000,-317.04591387,0.00012986,2]
[422947440,1779667843000,-235.13794891,0.00012986,2]
[422947470,1779667843000,-666.0,0.00012999,2]
[422947436,1779667843000,-178.12691507,0.00012986,2]
[422947364,1779667843000,-150.0,0.00012924,2]
[422947434,1779667843000,-259.07475596,0.00012986,2]
[422947373,1779667843000,-317.04591387,0.00012934,2]
[422947376,1779667843000,-197.81098472,0.00012935,2]
[422947378,1779667843000,-150.0,0.00012939,2]
[422947387,1779667843000,-150.0,0.00012946,2]
[422947390,1779667843000,-317.04591387,0.00012947,2]
[422947382,1779667843000,-150.0,0.0001294,2]
[422947397,1779667843000,-150.0,0.00012955,2]
[422947399,1779667843000,-8633.0,0.00012959,2]
[422947384,1779667843000,-150.0,0.00012943,2]
[422947401,1779667843000,-6457.0,0.00012959,2]
[422947403,1779667843000,-1395.0,0.00012959,2]
[422947409,1779667843000,-150.0,0.00012963,2]
[422947394,1779667843000,-150.0,0.00012955,2]
[422947407,1779667843000,-317.04591387,0.0001296,2]
[422947429,1779667843000,-272.56195256,0.00012986,2]
[422947427,1779667843000,-152.37696106,0.00012986,2]
[422947419,1779667843000,-151.74805146,0.00012986,2]
[422947423,1779667843000,-152.13926443,0.00012986,2]
[422947421,1779667843000,-235.03589208,0.00012986,2]
[422947425,1779667843000,-221.86736761,0.00012986,2]
[422947431,1779667843000,-261.07642048,0.00012986,2]
[422947413,1779667843000,-317.04591387,0.00012973,2]
[422947411,1779667843000,-150.0,0.00012971,2]
[422947415,1779667843000,-433.0,0.0001298,2]
[422947405,1779667843000,-150.0,0.0001296,2]
[422947417,1779667843000,-249.71486509,0.00012986,2]
[422947586,1779667844000,-500.0,0.00013698,2]
[422947577,1779667844000,-500.0,0.00013698,2]
[422947588,1779667844000,-500.0,0.00013698,2]
[422947580,1779667844000,-500.0,0.00013698,2]
[422947584,1779667844000,-500.0,0.00013698,2]
[422947569,1779667844000,-500.0,0.00013605,2]
[422947575,1779667844000,-151.0,0.00013698,2]
[422947571,1779667844000,-151.0,0.00013698,2]
[422947570,1779667844000,-151.0,0.00013698,2]
[422947579,1779667844000,-500.0,0.00013698,2]
[422947567,1779667844000,-183798.2,0.00013412,2]
[422947568,1779667844000,-787.74682039,0.00013498,2]
[422947573,1779667844000,-151.0,0.00013698,2]
[422947582,1779667844000,-500.0,0.00013698,2]
[422947617,1779667844000,-500.0,0.00013698,2]
[422947604,1779667844000,-500.0,0.00013698,2]
[422947590,1779667844000,-500.0,0.00013698,2]
[422947596,1779667844000,-500.0,0.00013698,2]
[422947592,1779667844000,-500.0,0.00013698,2]
[422947606,1779667844000,-331.29,0.00013698,2]
[422947607,1779667844000,-500.0,0.00013698,2]
[422947598,1779667844000,-297.11,0.00013698,2]
[422947594,1779667844000,-500.0,0.00013698,2]
[422947609,1779667844000,-500.0,0.00013698,2]
[422947611,1779667844000,-500.0,0.00013698,2]
[422947600,1779667844000,-500.0,0.00013698,2]
[422947613,1779667844000,-500.0,0.00013698,2]
[422947628,1779667844000,-500.0,0.00013698,2]
[422947566,1779667844000,-183.39747785,0.00013411,2]
[422947602,1779667844000,-500.0,0.00013698,2]
[422947552,1779667844000,-300.0,0.00013117,2]
[422947507,1779667844000,-300.0,0.00013002,2]
[422947565,1779667844000,-500.0,0.00013332,2]
[422947505,1779667844000,-198.247101,0.00013,2]
[422947503,1779667844000,-198.247101,0.00013,2]
[422947509,1779667844000,-300.0,0.00013003,2]
[422947626,1779667844000,-500.0,0.00013698,2]
[422947501,1779667844000,-518.523324,0.00013,2]
[422947511,1779667844000,-300.0,0.00013003,2]
[422947513,1779667844000,-300.0,0.00013003,2]
[422947515,1779667844000,-666.0,0.00013003,2]
[422947517,1779667844000,-300.0,0.00013003,2]
[422947519,1779667844000,-152.0,0.00013004,30]
[422947529,1779667844000,-300.0,0.00013056,2]
[422947531,1779667844000,-300.0,0.00013056,2]
[422947537,1779667844000,-300.0,0.00013057,2]
[422947533,1779667844000,-300.0,0.00013056,2]
[422947554,1779667844000,-90248.52412101,0.00013118,2]
[422947535,1779667844000,-666.0,0.00013056,2]
[422947525,1779667844000,-300.0,0.00013055,2]
[422947523,1779667844000,-300.0,0.00013055,2]
[422947527,1779667844000,-666.0,0.00013055,2]
[422947541,1779667844000,-300.0,0.00013057,2]
[422947539,1779667844000,-300.0,0.00013057,2]
[422947543,1779667844000,-666.0,0.00013057,2]
[422947546,1779667844000,-2723.37,0.00013057,2]
[422947556,1779667844000,-274.538261,0.00013151,2]
[422947558,1779667844000,-274.538261,0.00013151,2]
[422947560,1779667844000,-274.538261,0.00013151,2]
[422947564,1779667844000,-164.53,0.00013331,2]
[422947548,1779667844000,-500.0,0.00013058,2]
[422947562,1779667844000,-1152.0,0.00013257,2]
[422947550,1779667844000,-215.34753388,0.00013064,2]
[422947521,1779667844000,-300.0,0.00013055,2]
[422947632,1779667844000,-500.0,0.00013698,2]
[422947654,1779667844000,-500.0,0.00013698,2]
[422947621,1779667844000,-500.0,0.00013698,2]
[422947711,1779667844000,-544.84,0.00013698,2]
[422947713,1779667844000,-544.84,0.00013698,2]
[422947717,1779667844000,-544.84,0.00013698,2]
[422947715,1779667844000,-544.84,0.00013698,2]
[422947699,1779667844000,-544.84,0.00013698,2]
[422947707,1779667844000,-544.84,0.00013698,2]
[422947701,1779667844000,-544.84,0.00013698,2]
[422947719,1779667844000,-544.84,0.00013698,2]
[422947723,1779667844000,-544.84,0.00013698,2]
[422947721,1779667844000,-544.84,0.00013698,2]
[422947706,1779667844000,-544.84,0.00013698,2]
[422947703,1779667844000,-544.84,0.00013698,2]
[422947725,1779667844000,-544.84,0.00013698,2]
[422947731,1779667844000,-544.84,0.00013698,2]
[422947729,1779667844000,-544.84,0.00013698,2]
[422947727,1779667844000,-544.84,0.00013698,2]
[422947738,1779667844000,-544.84,0.00013698,2]
[422947742,1779667844000,-500.0,0.00013698,2]
[422947740,1779667844000,-544.9,0.00013698,2]
[422947744,1779667844000,-513.50677347,0.00013698,2]
[422947746,1779667844000,-518.523324,0.00013698,2]
[422947733,1779667844000,-544.84,0.00013698,2]
[422947735,1779667844000,-544.84,0.00013698,2]
[422947737,1779667844000,-544.84,0.00013698,2]
[422947748,1779667844000,-518.523324,0.00013698,2]
[422947750,1779667844000,-518.523324,0.00013698,2]
[422947752,1779667844000,-518.523324,0.00013698,2]
[422947754,1779667844000,-500.0,0.00013698,2]
[422947625,1779667844000,-500.0,0.00013698,2]
[422947695,1779667844000,-544.84,0.00013698,2]
[422947697,1779667844000,-544.84,0.00013698,2]
[422947709,1779667844000,-544.84,0.00013698,2]
[422947691,1779667844000,-462.719021,0.00013698,2]
[422947623,1779667844000,-500.0,0.00013698,2]
[422947693,1779667844000,-151.0,0.00013698,2]
[422947615,1779667844000,-500.0,0.00013698,2]
[422947630,1779667844000,-500.0,0.00013698,2]
[422947634,1779667844000,-500.0,0.00013698,2]
[422947640,1779667844000,-500.0,0.00013698,2]
[422947636,1779667844000,-500.0,0.00013698,2]
[422947638,1779667844000,-500.0,0.00013698,2]
[422947642,1779667844000,-500.0,0.00013698,2]
[422947652,1779667844000,-500.0,0.00013698,2]
[422947644,1779667844000,-623.85,0.00013698,2]
[422947650,1779667844000,-500.0,0.00013698,2]
[422947646,1779667844000,-500.0,0.00013698,2]
[422947656,1779667844000,-500.0,0.00013698,2]
[422947648,1779667844000,-500.0,0.00013698,2]
[422947619,1779667844000,-500.0,0.00013698,2]
[422947660,1779667844000,-500.0,0.00013698,2]
[422947674,1779667844000,-151.0,0.00013698,2]
[422947677,1779667844000,-500.0,0.00013698,2]
[422947685,1779667844000,-462.719021,0.00013698,2]
[422947670,1779667844000,-323.20561395,0.00013698,2]
[422947681,1779667844000,-500.0,0.00013698,2]
[422947658,1779667844000,-500.0,0.00013698,2]
[422947687,1779667844000,-462.719021,0.00013698,2]
[422947689,1779667844000,-462.719021,0.00013698,2]
[422947667,1779667844000,-500.0,0.00013698,2]
[422947679,1779667844000,-527.2240957,0.00013698,2]
[422947662,1779667844000,-500.0,0.00013698,2]
[422947664,1779667844000,-500.0,0.00013698,2]
[422947666,1779667844000,-500.0,0.00013698,2]
[422947683,1779667844000,-542.23499676,0.00013698,2]
[422947833,1779667845000,-579.67,0.00013698,2]
[422947849,1779667845000,-579.67,0.00013698,2]
[422947837,1779667845000,-500.0,0.00013698,2]
[422947845,1779667845000,-500.0,0.00013698,2]
[422947839,1779667845000,-579.67,0.00013698,2]
[422947829,1779667845000,-500.0,0.00013698,2]
[422947847,1779667845000,-500.0,0.00013698,2]
[422947843,1779667845000,-579.67,0.00013698,2]
[422947831,1779667845000,-500.0,0.00013698,2]
[422947825,1779667845000,-500.0,0.00013698,2]
[422947827,1779667845000,-579.67,0.00013698,2]
[422947823,1779667845000,-500.0,0.00013698,2]
[422947835,1779667845000,-500.0,0.00013698,2]
[422947841,1779667845000,-500.0,0.00013698,2]
[422947862,1779667845000,-579.67,0.00013698,2]
[422947853,1779667845000,-500.0,0.00013698,2]
[422947855,1779667845000,-579.67,0.00013698,2]
[422947857,1779667845000,-500.0,0.00013698,2]
[422947860,1779667845000,-500.0,0.00013698,2]
[422947866,1779667845000,-417.04800652,0.00013698,2]
[422947868,1779667845000,-579.67,0.00013698,2]
[422947870,1779667845000,-500.0,0.00013698,2]
[422947880,1779667845000,-579.67,0.00013698,2]
[422947864,1779667845000,-500.0,0.00013698,2]
[422947878,1779667845000,-500.0,0.00013698,2]
[422947872,1779667845000,-579.67,0.00013698,2]
[422947874,1779667845000,-500.0,0.00013698,2]
[422947813,1779667845000,-500.0,0.00013698,2]
[422947851,1779667845000,-500.0,0.00013698,2]
[422947821,1779667845000,-579.67,0.00013698,2]
[422947756,1779667845000,-500.0,0.00013698,2]
[422947819,1779667845000,-500.0,0.00013698,2]
[422947876,1779667845000,-579.67,0.00013698,2]
[422947758,1779667845000,-500.0,0.00013698,2]
[422947760,1779667845000,-500.0,0.00013698,2]
[422947762,1779667845000,-500.0,0.00013698,2]
[422947772,1779667845000,-500.0,0.00013698,2]
[422947766,1779667845000,-500.0,0.00013698,2]
[422947770,1779667845000,-500.0,0.00013698,2]
[422947764,1779667845000,-500.0,0.00013698,2]
[422947768,1779667845000,-500.0,0.00013698,2]
[422947774,1779667845000,-500.0,0.00013698,2]
[422947776,1779667845000,-579.67,0.00013698,2]
[422947778,1779667845000,-500.0,0.00013698,2]
[422947786,1779667845000,-500.0,0.00013698,2]
[422947788,1779667845000,-579.67,0.00013698,2]
[422947809,1779667845000,-579.67,0.00013698,2]
[422947790,1779667845000,-500.0,0.00013698,2]
[422947782,1779667845000,-500.0,0.00013698,2]
[422947792,1779667845000,-579.67,0.00013698,2]
[422947784,1779667845000,-579.67,0.00013698,2]
[422947795,1779667845000,-579.67,0.00013698,2]
[422947794,1779667845000,-500.0,0.00013698,2]
[422947804,1779667845000,-579.67,0.00013698,2]
[422947798,1779667845000,-500.0,0.00013698,2]
[422947800,1779667845000,-579.67,0.00013698,2]
[422947802,1779667845000,-500.0,0.00013698,2]
[422947815,1779667845000,-579.67,0.00013698,2]
[422947817,1779667845000,-500.0,0.00013698,2]
[422947807,1779667845000,-500.0,0.00013698,2]
[422947805,1779667845000,-500.0,0.00013698,2]
[422947811,1779667845000,-500.0,0.00013698,2]
[422947780,1779667845000,-579.67,0.00013698,2]
[422947882,1779667845000,-500.0,0.00013698,2]
[422947923,1779667845000,-500.0,0.00013698,2]
[422947885,1779667845000,-579.67,0.00013698,2]
[422947955,1779667845000,-1597.95,0.00013698,2]
[422947957,1779667845000,-1597.95,0.00013698,2]
[422947964,1779667845000,-1597.95,0.00013698,2]
[422947966,1779667845000,-1597.95,0.00013698,2]
[422947974,1779667845000,-1597.95,0.00013698,2]
[422947968,1779667845000,-1597.95,0.00013698,2]
[422947980,1779667845000,-1597.95,0.00013698,2]
[422947970,1779667845000,-1597.95,0.00013698,2]
[422947976,1779667845000,-1597.95,0.00013698,2]
[422947972,1779667845000,-1597.95,0.00013698,2]
[422947978,1779667845000,-1597.95,0.00013698,2]
[422947988,1779667845000,-1597.95,0.00013698,2]
[422947986,1779667845000,-1597.95,0.00013698,2]
[422947982,1779667845000,-1597.95,0.00013698,2]
[422947895,1779667845000,-500.0,0.00013698,2]
[422948000,1779667845000,-500.0,0.00013698,2]
[422948012,1779667845000,-166.66,0.00013699,2]
[422948008,1779667845000,-274.538261,0.00013698,2]
[422947997,1779667845000,-500.0,0.00013698,2]
[422948004,1779667845000,-274.538261,0.00013698,2]
[422948006,1779667845000,-198.247101,0.00013698,2]
[422948010,1779667845000,-198.247101,0.00013698,2]
[422948016,1779667845000,-257.52,0.00013699,2]
[422948002,1779667845000,-491.34154668,0.00013698,2]
[422947994,1779667845000,-1598.15,0.00013698,2]
[422947998,1779667845000,-274.538261,0.00013698,2]
[422947992,1779667845000,-1597.95,0.00013698,2]
[422947990,1779667845000,-1597.95,0.00013698,2]
[422948014,1779667845000,-200.0,0.00013699,2]
[422947951,1779667845000,-1597.95,0.00013698,2]
[422947953,1779667845000,-1597.95,0.00013698,2]
[422947984,1779667845000,-1597.95,0.00013698,2]
[422947945,1779667845000,-1597.95,0.00013698,2]
[422947949,1779667845000,-1597.95,0.00013698,2]
[422947897,1779667845000,-500.0,0.00013698,2]
[422947899,1779667845000,-500.0,0.00013698,2]
[422947903,1779667845000,-500.0,0.00013698,2]
[422947901,1779667845000,-500.0,0.00013698,2]
[422947887,1779667845000,-500.0,0.00013698,2]
[422947891,1779667845000,-500.0,0.00013698,2]
[422947893,1779667845000,-500.0,0.00013698,2]
[422947907,1779667845000,-500.0,0.00013698,2]
[422947911,1779667845000,-500.0,0.00013698,2]
[422947909,1779667845000,-500.0,0.00013698,2]
[422947905,1779667845000,-500.0,0.00013698,2]
[422947913,1779667845000,-500.0,0.00013698,2]
[422947925,1779667845000,-500.0,0.00013698,2]
[422947889,1779667845000,-579.75,0.00013698,2]
[422947919,1779667845000,-500.0,0.00013698,2]
[422947939,1779667845000,-500.0,0.00013698,2]
[422947928,1779667845000,-500.0,0.00013698,2]
[422947947,1779667845000,-1597.95,0.00013698,2]
[422947941,1779667845000,-500.0,0.00013698,2]
[422947943,1779667845000,-1597.95,0.00013698,2]
[422947933,1779667845000,-500.0,0.00013698,2]
[422947937,1779667845000,-241.06693824,0.00013698,2]
[422947935,1779667845000,-500.0,0.00013698,2]
[422947931,1779667845000,-500.0,0.00013698,2]
[422947915,1779667845000,-500.0,0.00013698,2]
[422947927,1779667845000,-500.0,0.00013698,2]
[422947917,1779667845000,-500.0,0.00013698,2]
[422947929,1779667845000,-500.0,0.00013698,2]
[422947921,1779667845000,-500.0,0.00013698,2]
[422948126,1779667846000,-164.53,0.00014072,2]
[422948110,1779667846000,-500.0,0.00013879,2]
[422948124,1779667846000,-151.0,0.00014,2]
[422948130,1779667846000,-166.66,0.00014247,2]
[422948108,1779667846000,-166.66,0.00013836,2]
[422948106,1779667846000,-651.16,0.00013803,2]
[422948084,1779667846000,-500.0,0.00013699,2]
[422948102,1779667846000,-500.0,0.00013699,2]
[422948096,1779667846000,-500.0,0.00013699,2]
[422948090,1779667846000,-500.0,0.00013699,2]
[422948092,1779667846000,-500.0,0.00013699,2]
[422948088,1779667846000,-500.0,0.00013699,2]
[422948120,1779667846000,-307.76784937,0.00014,21]
[422948104,1779667846000,-414.04,0.000137,2]
[422948112,1779667846000,-546.06214048,0.00013921,2]
[422948100,1779667846000,-500.0,0.00013699,2]
[422948129,1779667846000,-736.0,0.00014234,2]
[422948146,1779667846000,-871.485589,0.00014699,2]
[422948148,1779667846000,-462.719021,0.00014699,2]
[422948132,1779667846000,-776.0,0.00014583,2]
[422948136,1779667846000,-151.0,0.00014699,2]
[422948131,1779667846000,-166.66,0.00014384,2]
[422948144,1779667846000,-151.0,0.00014699,2]
[422948125,1779667846000,-307.76784937,0.00014062,21]
[422948134,1779667846000,-151.0,0.00014696,2]
[422948116,1779667846000,-19369.29764131,0.0001399,2]
[422948114,1779667846000,-166.66,0.00013973,2]
[422948118,1779667846000,-100000.0,0.00014,2]
[422948122,1779667846000,-250.0,0.00014,2]
[422948127,1779667846000,-166.66,0.0001411,2]
[422948128,1779667846000,-2000.0,0.00014111,2]
[422948154,1779667846000,-871.485589,0.00014699,2]
[422948098,1779667846000,-449.29757799,0.00013699,2]
[422948142,1779667846000,-174.142519,0.00014699,2]
[422948094,1779667846000,-500.0,0.00013699,2]
[422948149,1779667846000,-871.485589,0.00014699,2]
[422948018,1779667846000,-214.6,0.00013699,2]
[422948021,1779667846000,-894.2,0.00013699,2]
[422948024,1779667846000,-151.0,0.00013699,2]
[422948026,1779667846000,-151.0,0.00013699,2]
[422948032,1779667846000,-871.485589,0.00013699,2]
[422948041,1779667846000,-871.485589,0.00013699,2]
[422948029,1779667846000,-871.485589,0.00013699,2]
[422948038,1779667846000,-871.485589,0.00013699,2]
[422948020,1779667846000,-178.83,0.00013699,2]
[422948035,1779667846000,-871.485589,0.00013699,2]
[422948046,1779667846000,-871.485589,0.00013699,2]
[422948043,1779667846000,-871.485589,0.00013699,2]
[422948048,1779667846000,-871.485589,0.00013699,2]
[422948051,1779667846000,-157.174992,0.00013699,2]
[422948053,1779667846000,-157.174992,0.00013699,2]
[422948055,1779667846000,-157.174992,0.00013699,2]
[422948083,1779667846000,-500.0,0.00013699,2]
[422948080,1779667846000,-500.0,0.00013699,2]
[422948078,1779667846000,-500.0,0.00013699,2]
[422948076,1779667846000,-500.0,0.00013699,2]
[422948074,1779667846000,-500.0,0.00013699,2]
[422948063,1779667846000,-157.174992,0.00013699,2]
[422948086,1779667846000,-500.0,0.00013699,2]
[422948065,1779667846000,-157.174992,0.00013699,2]
[422948057,1779667846000,-157.174992,0.00013699,2]
[422948061,1779667846000,-157.174992,0.00013699,2]
[422948071,1779667846000,-500.0,0.00013699,2]
[422948069,1779667846000,-500.0,0.00013699,2]
[422948072,1779667846000,-500.0,0.00013699,2]
[422948067,1779667846000,-500.0,0.00013699,2]
[422948059,1779667846000,-157.174992,0.00013699,2]
[422948152,1779667846000,-462.719021,0.00014699,2]